fUSD/lending_fUSD_20241027
["ID","MTS","AMOUNT","RATE_DAILY","PERIOD"]
[340879669,1730001039138,-500.0,0.000425,120]
[340879670,1730001039148,-500.0,0.000425,120]
[340879671,1730001039157,-500.0,0.000425,120]
[340879672,1730001039166,-500.0,0.000425,120]
[340879673,1730001039175,-500.0,0.000425,120]
[340879674,1730001039184,-500.0,0.000425,120]
[340879675,1730001039192,-500.0,0.000425,120]
[340879676,1730001039201,-500.0,0.000425,120]
[340879677,1730001039210,-500.0,0.000425,120]
[340879678,1730001039220,-500.0,0.000425,120]
[340879679,1730001039228,-500.0,0.000425,120]
[340879680,1730001039237,-500.0,0.000425,120]
[340879681,1730001039247,-500.0,0.000425,120]
[340879682,1730001039256,-500.0,0.000425,120]
[340879683,1730001039265,-500.0,0.000425,120]
[340879684,1730001039275,-500.0,0.000425,120]
[340879685,1730001039283,-500.0,0.000425,120]
[340879686,1730001039292,-500.0,0.000425,120]
[340879687,1730001039302,-500.0,0.000425,120]
[340879688,1730001039311,-500.0,0.000425,120]
[340879689,1730001039320,-500.0,0.000425,120]
[340879690,1730001039329,-500.0,0.000425,120]
[340879691,1730001039339,-500.0,0.000425,120]
[340879692,1730001039349,-500.0,0.000425,120]
[340879693,1730001039358,-500.0,0.000425,120]
[340879694,1730001039367,-500.0,0.000425,120]
[340879695,1730001039376,-500.0,0.000425,120]
[340879696,1730001039387,-500.0,0.000425,120]
[340879697,1730001039397,-500.0,0.000425,120]
[340879698,1730001039407,-500.0,0.000425,120]
[340879699,1730001039417,-500.0,0.000425,120]
[340879700,1730001039429,-500.0,0.000425,120]
[340879701,1730001039437,-500.0,0.000425,120]
[340879702,1730001039447,-500.0,0.000425,120]
[340879703,1730001039457,-500.0,0.000425,120]
[340879704,1730001039468,-500.0,0.000425,120]
[340879705,1730001039476,-500.0,0.000425,120]
[340879706,1730001039485,-500.0,0.000425,120]
[340879707,1730001039496,-500.0,0.000425,120]
[340879708,1730001039506,-500.0,0.000425,120]
[340879709,1730001039516,-500.0,0.000425,120]
[340879710,1730001039525,-500.0,0.000425,120]
[340879711,1730001039534,-500.0,0.000425,120]
[340879712,1730001039545,-500.0,0.000425,120]
[340879713,1730001039556,-500.0,0.000425,120]
[340879714,1730001039630,-423.947733,0.000425,14]
[340879715,1730001039647,-423.947733,0.000425,14]
[340879716,1730001039656,-173.86654749,0.000425,7]
[340879717,1730001039666,-276.265633,0.000425,14]
[340879718,1730001039675,-276.265633,0.000425,14]
[340879719,1730001039684,-234.317708,0.000425,14]
[340879720,1730001039693,-234.317708,0.000425,14]
[340879721,1730001039702,-2896.2652,0.000425,14]
[340879722,1730001039712,-2896.2652,0.000425,14]
[340879723,1730001039721,-152.0,0.00042552,6]
[340879724,1730001039731,-8370.56148574,0.0004256,9]
[340879725,1730001039740,-276.265633,0.0004257,14]
[340879726,1730001039749,-276.265633,0.0004257,14]
[340879727,1730001039763,-500.0,0.0004258,120]
[340879728,1730001039773,-500.0,0.0004258,120]
[340879729,1730001039783,-500.0,0.0004258,120]
[340879730,1730001039792,-500.0,0.0004258,120]
[340879731,1730001039801,-500.0,0.0004258,120]
[340879732,1730001039810,-500.0,0.0004258,120]
[340879733,1730001039819,-500.0,0.0004258,120]
[340879734,1730001039829,-500.0,0.0004258,120]
[340879735,1730001039838,-500.0,0.0004258,120]
[340879736,1730001039848,-500.0,0.0004258,120]
[340879737,1730001039857,-500.0,0.0004258,120]
[340879738,1730001039868,-500.0,0.0004258,120]
[340879739,1730001039878,-500.0,0.0004258,120]
[340879740,1730001039888,-500.0,0.0004258,120]
[340879741,1730001039899,-500.0,0.0004258,120]
[340879742,1730001039909,-500.0,0.0004258,120]
[340879743,1730001039919,-500.0,0.0004258,120]
[340879744,1730001039929,-500.0,0.0004258,120]
[340879745,1730001039939,-500.0,0.0004258,120]
[340879746,1730001039949,-500.0,0.0004258,120]
[340879747,1730001039958,-500.0,0.0004258,120]
[340879748,1730001039968,-500.0,0.0004258,120]
[340879749,1730001039979,-500.0,0.0004258,120]
[340879750,1730001039988,-500.0,0.0004258,120]
[340879751,1730001039997,-151.0,0.0004258,14]
[340879752,1730001040007,-196.620671,0.0004258,14]
[340879753,1730001040016,-196.620671,0.0004258,14]
[340879754,1730001040026,-151.0,0.0004258,14]
[340879755,1730001040035,-227.022317,0.0004258,14]
[340879756,1730001040044,-41852.8074287,0.0004258,9]
[340879757,1730001040054,-436.62204984,0.0004258,9]
[340879758,1730001040067,-151.0,0.0004259,14]
[340879759,1730001040078,-151.0,0.0004259,14]
[340879760,1730001040089,-151.0,0.0004259,14]
[340879761,1730001040098,-151.0,0.0004259,14]
[340879762,1730001040109,-151.0,0.0004259,14]
[340879763,1730001040119,-151.0,0.0004259,14]
[340879764,1730001040130,-267.298432,0.0004259,14]
[340879765,1730001040139,-151.0,0.0004259,14]
[340879766,1730001040150,-151.0,0.0004259,2]
[340879767,1730001040161,-151.0,0.0004259,2]
[340879768,1730001040171,-158.629874,0.0004259,2]
[340879769,1730001040181,-217.63304,0.0004259,14]
[340879770,1730001040190,-217.63304,0.0004259,14]
[340879771,1730001040199,-217.63304,0.0004259,14]
[340879772,1730001040208,-217.63304,0.0004259,14]
[340879773,1730001040218,-304.332042,0.0004259,14]
[340879774,1730001040226,-304.332042,0.0004259,14]
[340879775,1730001040236,-304.332042,0.0004259,14]
[340879776,1730001040245,-304.332042,0.0004259,14]
[340879777,1730001040255,-423.947733,0.0004259,14]
[340879778,1730001040264,-423.947733,0.0004259,14]
[340879779,1730001040274,-1309.86614952,0.0004259,9]
[340879780,1730001040285,-423.947733,0.0004259,14]
[340879781,1730001040297,-423.947733,0.0004259,14]
[340879782,1730001040306,-151.0,0.0004259,14]
[340879783,1730001040316,-151.0,0.0004259,14]
[340879784,1730001040327,-276.265633,0.0004259,14]
[340879785,1730001040337,-276.265633,0.0004259,14]
[340879786,1730001040347,-276.265633,0.0004259,14]
[340879787,1730001040356,-276.265637,0.0004259,14]
[340879788,1730001040366,-234.317708,0.0004259,14]
[340879789,1730001040375,-234.317708,0.0004259,14]
[340879790,1730001040385,-234.317708,0.0004259,14]
[340879791,1730001040395,-234.317698,0.0004259,14]
[340879792,1730001040404,-2896.2652,0.0004259,14]
[340879793,1730001040413,-2896.2652,0.0004259,14]
[340879794,1730001040422,-2896.2652,0.0004259,14]
[340879795,1730001040432,-2896.2652,0.0004259,14]
[340879796,1730001040441,-32700.0,0.000426,30]
[340879797,1730001040450,-151.0,0.000426,14]
[340879798,1730001040460,-500.0,0.000426,120]
[340879799,1730001040469,-500.0,0.000426,120]
[340879800,1730001040478,-500.0,0.000426,120]
[340879801,1730001040487,-500.0,0.000426,120]
[340879802,1730001040496,-500.0,0.000426,120]
[340879803,1730001040507,-500.0,0.000426,120]
[340879804,1730001040516,-500.0,0.000426,120]
[340879805,1730001040525,-173.165388,0.000426,14]
[340879806,1730001040535,-151.0,0.000426,14]
[340879807,1730001040544,-173.165393,0.000426,14]
[340879808,1730001040554,-500.0,0.000426,120]
[340879809,1730001040563,-500.0,0.000426,120]
[340879810,1730001040572,-500.0,0.000426,120]
[340879811,1730001040582,-500.0,0.000426,120]
[340879812,1730001040591,-500.0,0.000426,120]
[340879813,1730001040601,-500.0,0.000426,120]
[340879814,1730001040610,-500.0,0.000426,120]
[340879815,1730001040619,-500.0,0.000426,120]
[340879816,1730001040628,-500.0,0.000426,120]
[340879817,1730001040638,-500.0,0.000426,120]
[340879818,1730001040647,-500.0,0.000426,120]
[340879819,1730001040656,-500.0,0.000426,120]
[340879820,1730001040666,-500.0,0.000426,120]
[340879821,1730001040676,-500.0,0.000426,120]
[340879822,1730001040686,-500.0,0.000426,120]
[340879823,1730001040696,-500.0,0.000426,120]
[340879824,1730001040706,-500.0,0.000426,120]
[340879825,1730001040716,-500.0,0.000426,120]
[340879826,1730001040725,-500.0,0.000426,120]
[340879827,1730001040735,-500.0,0.000426,120]
[340879828,1730001040744,-500.0,0.000426,120]
[340879829,1730001040754,-500.0,0.000426,120]
[340879830,1730001040763,-500.0,0.000426,120]
[340879831,1730001040772,-500.0,0.000426,120]
[340879832,1730001040782,-500.0,0.000426,120]
[340879833,1730001040792,-500.0,0.000426,120]
[340879834,1730001040802,-500.0,0.000426,120]
[340879835,1730001040811,-500.0,0.000426,120]
[340879836,1730001040821,-500.0,0.000426,120]
[340879837,1730001040830,-500.0,0.000426,120]
[340879838,1730001040841,-500.0,0.000426,120]
[340879839,1730001040851,-500.0,0.000426,120]
[340879840,1730001040861,-500.0,0.000426,120]
[340879841,1730001040871,-500.0,0.000426,120]
[340879842,1730001040881,-500.0,0.000426,120]
[340879843,1730001040892,-500.0,0.000426,120]
[340879844,1730001040902,-500.0,0.000426,120]
[340879845,1730001040914,-500.0,0.000426,120]
[340879846,1730001040924,-500.0,0.000426,120]
[340879847,1730001040934,-500.0,0.000426,120]
[340879848,1730001040945,-500.0,0.000426,120]
[340879849,1730001040955,-500.0,0.000426,120]
[340879850,1730001040967,-500.0,0.000426,120]
[340879851,1730001040977,-500.0,0.000426,120]
[340879852,1730001040992,-500.0,0.000426,120]
[340879853,1730001041004,-500.0,0.000426,120]
[340879854,1730001041013,-500.0,0.000426,120]
[340879855,1730001041022,-500.0,0.000426,120]
[340879856,1730001041032,-500.0,0.000426,120]
[340879857,1730001041043,-500.0,0.000426,120]
[340879858,1730001041053,-500.0,0.000426,120]
[340879859,1730001041062,-500.0,0.000426,120]
[340879860,1730001041071,-500.0,0.000426,120]
[340879861,1730001041080,-500.0,0.000426,120]
[340879862,1730001041089,-500.0,0.000426,120]
[340879863,1730001041098,-500.0,0.000426,120]
[340879864,1730001041107,-500.0,0.000426,120]
[340879865,1730001041116,-500.0,0.000426,120]
[340879866,1730001041125,-500.0,0.000426,120]
[340879867,1730001041134,-500.0,0.000426,120]
[340879869,1730001041144,-500.0,0.000426,120]
[340879871,1730001041153,-500.0,0.000426,120]
[340879872,1730001041228,-500.0,0.000426,120]
[340879873,1730001041237,-500.0,0.000426,120]
[340879874,1730001041247,-500.0,0.000426,120]
[340879875,1730001041257,-500.0,0.000426,120]
[340879876,1730001041267,-500.0,0.000426,120]
[340879877,1730001041275,-500.0,0.000426,120]
[340879878,1730001041285,-500.0,0.000426,120]
[340879879,1730001041294,-500.0,0.000426,120]
[340879880,1730001041304,-500.0,0.000426,120]
[340879881,1730001041313,-500.0,0.000426,120]
[340879882,1730001041322,-500.0,0.000426,120]
[340879883,1730001041331,-500.0,0.000426,120]
[340879884,1730001041341,-500.0,0.000426,120]
[340879885,1730001041351,-500.0,0.000426,120]
[340879886,1730001041361,-500.0,0.000426,120]
[340879887,1730001041371,-500.0,0.000426,120]
[340879888,1730001041380,-500.0,0.000426,120]
[340879889,1730001041390,-500.0,0.000426,120]
[340879890,1730001041399,-500.0,0.000426,120]
[340879891,1730001041411,-500.0,0.000426,120]
[340879892,1730001041420,-151.0,0.000426,14]
[340879893,1730001041433,-151.0,0.000426,14]
[340879894,1730001041443,-586.75935,0.000426,14]
[340879895,1730001041454,-586.75935,0.000426,14]
[340879896,1730001041464,-586.75935,0.000426,14]
[340879897,1730001041474,-586.75935,0.000426,14]
[340879898,1730001041483,-151.0,0.000426,14]
[340879899,1730001041494,-151.0,0.000426,14]
[340879900,1730001041504,-232.300667,0.000426,14]
[340879901,1730001041514,-151.0,0.000426,14]
[340879902,1730001041523,-151.0,0.000426,14]
[340879903,1730001041533,-196.620671,0.000426,14]
[340879904,1730001041547,-196.620671,0.000426,14]
[340879905,1730001041556,-196.620671,0.000426,14]
[340879906,1730001041565,-196.620671,0.000426,14]
[340879907,1730001041574,-196.620671,0.000426,14]
[340879908,1730001041585,-196.620662,0.000426,14]
[340879909,1730001041595,-151.0,0.000426,14]
[340879910,1730001041604,-151.0,0.000426,14]
[340879911,1730001041614,-151.0,0.000426,14]
[340879912,1730001041623,-273.10703,0.000426,14]
[340879913,1730001041632,-151.0,0.000426,14]
[340879914,1730001041642,-151.0,0.000426,2]
[340879915,1730001041651,-217.63304,0.000426,14]
[340879916,1730001041660,-217.63305,0.000426,14]
[340879917,1730001041670,-304.332042,0.000426,14]
[340879918,1730001041679,-304.332051,0.000426,14]
[340879919,1730001041688,-151.0,0.000426,14]
[340879920,1730001041698,-2896.2652,0.000426,14]
[340879921,1730001041707,-2896.265195,0.000426,14]
[340879922,1730001041716,-4271.6101525,0.00042695,15]
[340879923,1730001041726,-586.75935,0.00042715,14]
[340879924,1730001041735,-586.75935,0.00042715,14]
[340879925,1730001041745,-199.858222,0.00042816,7]
[340879926,1730001041755,-199.858222,0.00042816,7]
[340879927,1730001041765,-164.356048,0.0004298,14]
[340879928,1730001041774,-150.4912383,0.00042987,7]
[340879929,1730001041783,-154.800051,0.0004299,14]
[340879930,1730001041792,-151.0,0.0004299,14]
[340879931,1730001041803,-1632.68,0.00043,60]
[340879932,1730001041812,-1562.88,0.00043,30]
[340879933,1730001041822,-5277.19,0.00043,2]
[340879934,1730001041831,-502.13015202,0.00043,5]
[340879935,1730001041840,-2290.2599181,0.00043,4]
[340879936,1730001041849,-1137.0,0.00043,120]
[340879937,1730001041858,-409.44810422,0.00043,30]
[340879938,1730001041868,-151.0,0.00043,14]
[340879939,1730001041877,-215.94149968,0.00043036,15]
[340879940,1730001041886,-215.94149961,0.00043042,15]
[340879941,1730001041896,-4271.6101525,0.00043114,15]
[340879942,1730001041905,-1961.59715386,0.00043154,10]
[340879943,1730001041915,-156.08564729,0.00043218,28]
[340879944,1730001041924,-411.09,0.00043218,2]
[340879945,1730001041933,-173.86654749,0.00043226,10]
[340879946,1730001041943,-150.0,0.00043259,2]
[340879947,1730001041953,-436.62204984,0.0004336,10]
[340879948,1730001041963,-151.0,0.0004337,14]
[340879949,1730001041972,-586.75935,0.0004337,14]
[340879950,1730001041985,-586.759353,0.0004337,14]
[340879951,1730001041994,-199.858222,0.00043376,7]
[340879952,1730001042004,-199.858222,0.00043376,7]
[340879953,1730001042013,-151.0,0.0004338,14]
[340879954,1730001042023,-814.0,0.0004338,2]
[340879955,1730001042031,-807.76156763,0.0004338,2]
[340879956,1730001042371,-250.0,0.0003738,2]
[340879957,1730001042380,-281.157,0.0003738,2]
[340879958,1730001042389,-272.889,0.00039846,2]
[340879959,1730001042399,-151.0,0.0004038,14]
[340879960,1730001042410,-151.0,0.0004038,14]
[340879961,1730001042419,-434.059793,0.0004038,14]
[340879962,1730001042500,-151.0,0.0004038,14]
[340879963,1730001042509,-150.0,0.0004038,2]
[340879964,1730001042518,-434.059793,0.0004048,14]
[340879965,1730001042529,-151.0,0.0004048,14]
[340879966,1730001042538,-151.0,0.0004048,14]
[340879967,1730001042547,-151.0,0.0004048,14]
[340879968,1730001042556,-434.059793,0.0004048,14]
[340879969,1730001042565,-362.57298581,0.0004058,14]
[340879970,1730001042577,-71.48680719,0.0004058,14]
[340879971,1730001042586,-151.0,0.0004058,14]
[340879972,1730001042595,-151.0,0.0004058,14]
[340879973,1730001042604,-434.059793,0.0004058,14]
[340879974,1730001042613,-151.0,0.0004058,14]
[340879975,1730001042623,-220.77968668,0.00040684,14]
[340879976,1730001042634,-213.28010632,0.00040684,14]
[340879977,1730001042644,-153.272824,0.00040684,14]
[340879978,1730001042653,-151.0,0.00040684,14]
[340879979,1730001042663,-434.059793,0.00040684,14]
[340879980,1730001042672,-299.214508,0.00040684,14]
[340879981,1730001042681,-106.39819856,0.00041831,14]
[340879982,1730001042694,-327.66159444,0.00041831,14]
[340879983,1730001042704,-151.0,0.00041831,14]
[340879984,1730001042714,-434.059793,0.00042063,14]
[340879985,1730001042724,-151.0,0.00042381,14]
[340879986,1730001042733,-434.059793,0.000425,14]
[340879987,1730001042742,-500.0,0.000425,120]
[340879988,1730001042752,-86.25155706,0.000425,120]
[340879989,1730001042763,-413.74844294,0.000425,120]
[340879990,1730001042772,-500.0,0.000425,120]
[340879991,1730001042782,-151.0,0.000425,14]
[340879992,1730001042791,-500.0,0.000425,120]
[340879993,1730001042800,-500.0,0.000425,120]
[340879994,1730001042809,-500.0,0.000425,120]
[340879995,1730001042819,-500.0,0.000425,120]
[340879996,1730001042828,-151.0,0.0004258,14]
[340879997,1730001042837,-36.13686459,0.0004259,14]
[340879998,1730001042849,-397.92292841,0.0004259,14]
[340879999,1730001042858,-434.059793,0.0004259,14]
[340880000,1730001042868,-151.0,0.0004259,14]
[340880001,1730001042878,-434.059793,0.000426,14]
[340880002,1730001042887,-749.74090697,0.000428,19]
[340880003,1730001042898,-218.72068369,0.000428,19]
[340880004,1730001042908,-66.7710413,0.0004338,2]
[340880005,1730001042921,-245.33639107,0.0004338,2]
[340880006,1730001042930,-293.46274082,0.0004338,2]
[340880007,1730001042941,-156.53725918,0.0004338,2]
[340880008,1730001042951,-561.0,0.0004338,2]
[340880009,1730001042962,-556.0,0.0004338,2]
[340880010,1730001042972,-1913.0,0.0004338,2]
[340880011,1730001042987,-3365.0,0.0004338,2]
[340880012,1730001042998,-811.0,0.0004338,2]
[340880013,1730001043009,-150.0,0.0004338,2]
[340880014,1730001043019,-150.0,0.0004338,2]
[340880015,1730001043028,-5898.0,0.0004338,2]
[340880016,1730001043038,-13302.842,0.0004338,2]
[340880017,1730001043048,-150.0,0.0004338,2]
[340880018,1730001043057,-165.102711,0.00043448,120]
[340880019,1730001043067,-5000.0,0.000435,60]
[340880020,1730001043076,-4271.6101525,0.00043533,15]
[340880021,1730001043087,-1487.04353173,0.00043537,30]
[340880022,1730001043096,-436.62204984,0.00043625,10]
[340880023,1730001043106,-151.0,0.00043644,14]
[340880024,1730001043115,-8912.15565181,0.00043644,30]
[340880025,1730001043125,-14511.75101349,0.00043654,3]
[340880026,1730001043136,-1172.62595996,0.00043654,3]
[340880027,1730001043152,-11682.62302655,0.00043654,3]
[340880028,1730001043162,-151.0,0.00043655,14]
[340880029,1730001043171,-199.858222,0.0004368,7]
[340880030,1730001043181,-199.858222,0.0004368,7]
[340880031,1730001043190,-1025.593004,0.000437,120]
[340880032,1730001043199,-214.34563587,0.000437,120]
[340880033,1730001043209,-436.62204984,0.0004378,10]
[340880034,1730001043218,-12291.09983974,0.000438,2]
[340880036,1730001043238,-434.059793,0.00041831,14]
[340880038,1730001043247,-968.46159066,0.00043735,20]
[340880040,1730001043257,-1966.89684553,0.000438,2]
[340880041,1730001043268,-13599.06947283,0.000438,2]
[340880042,1730001043278,-37.09221225,0.000438,14]
[340880043,1730001043291,-254.85887675,0.000438,14]
[340880044,1730001043301,-436.62204984,0.00043815,10]
[340880045,1730001043310,-275.23175489,0.00043825,10]
[340880046,1730001043322,-161.39029495,0.00043825,10]
[340880047,1730001043333,-661.09988052,0.00043834,2]
[340880048,1730001043345,-338.90011948,0.00043834,2]
[340880049,1730001043356,-42.4345342,0.00043835,5]
[340880050,1730001043432,-151.0,0.0004038,14]
[340880051,1730001043443,-167.184231,0.0004048,14]
[340880052,1730001043452,-150.0,0.00041275,7]
[340880053,1730001043463,-317.13716715,0.00042063,14]
[340880054,1730001043474,-116.92262585,0.00042063,14]
[340880055,1730001043485,-368.47542595,0.000425,120]
[340880056,1730001043499,-131.52457405,0.000425,120]
[340880057,1730001043510,-500.0,0.000425,120]
[340880058,1730001043519,-500.0,0.000425,120]
[340880059,1730001043528,-434.059793,0.000425,14]
[340880060,1730001043538,-500.0,0.000425,120]
[340880061,1730001043547,-176.60371702,0.000425,120]
[340880062,1730001043558,-323.39628298,0.000425,120]
[340880063,1730001043568,-295.96871701,0.000425,120]
[340880064,1730001043580,-204.03128299,0.000425,120]
[340880065,1730001043591,-434.059793,0.0004259,14]
[340880066,1730001043600,-369.14245511,0.0004259,14]
[340880067,1730001043613,-64.91733789,0.0004259,14]
[340880068,1730001043623,-434.059798,0.000426,14]
[340880069,1730001043632,-457.83282957,0.00043835,5]
[340880070,1730001043642,-540.57114562,0.00043835,5]
[340880071,1730001043652,-470.89960854,0.00043835,5]
[340880072,1730001043662,-199.858222,0.00043835,7]
[340880073,1730001043673,-199.858222,0.00043835,7]
[340880074,1730001043683,-199.858222,0.00043835,7]
[340880075,1730001043693,-199.858222,0.00043835,7]
[340880076,1730001043703,-199.858222,0.00043835,7]
[340880077,1730001043713,-199.858224,0.00043835,7]
[340880078,1730001043722,-500.0,0.00043835,5]
[340880079,1730001043731,-500.0,0.00043835,5]
[340880080,1730001043740,-500.0,0.00043835,5]
[340880081,1730001043749,-404.94444634,0.00043835,5]
[340880082,1730001043762,-95.05555366,0.00043835,5]
[340880083,1730001043771,-500.0,0.00043835,5]
[340880084,1730001043781,-500.0,0.00043835,5]
[340880085,1730001043853,-500.0,0.00043835,5]
[340880086,1730001043863,-500.0,0.00043835,5]
[340880087,1730001043873,-365.18963274,0.00043835,5]
[340880088,1730001043883,-574.56184291,0.00043835,5]
[340880089,1730001043892,-151.19539293,0.00043835,5]
[340880090,1730001043902,-500.0,0.00043835,5]
[340880091,1730001043911,-507.95897448,0.00043835,5]
[340880092,1730001043920,-500.0,0.00043835,5]
[340880093,1730001043929,-505.8884228,0.00043835,5]
[340880094,1730001043938,-500.0,0.00043835,5]
[340880095,1730001043948,-500.0,0.00043835,5]
[340880096,1730001043957,-500.0,0.00043835,5]
[340880097,1730001043966,-500.0,0.00043835,5]
[340880098,1730001043975,-500.0,0.00043835,5]
[340880099,1730001043987,-500.0,0.00043835,5]
[340880100,1730001043996,-500.0,0.00043835,5]
[340880101,1730001044005,-221.94889624,0.00043835,5]
[340880102,1730001044014,-699.42,0.00043835,5]
[340880103,1730001044024,-699.42,0.00043835,5]
[340880104,1730001044033,-336.86128424,0.00043835,5]
[340880105,1730001044044,-362.55871576,0.00043835,5]
[340880106,1730001044054,-699.42,0.00043835,5]
[340880107,1730001044064,-699.42,0.00043835,5]
[340880108,1730001044076,-699.42,0.00043835,5]
[340880109,1730001044085,-699.42,0.00043835,5]
[340880110,1730001044095,-635.84372266,0.00043835,5]
[340880111,1730001044105,-480.39938205,0.00043835,5]
[340880112,1730001044119,-19.60061795,0.00043835,5]
[340880113,1730001044131,-387.17560353,0.00043835,5]
[340880114,1730001044143,-112.82439647,0.00043835,5]
[340880115,1730001044152,-500.0,0.00043835,5]
[340880116,1730001044163,-500.0,0.00043835,5]
[340880117,1730001044172,-506.73648245,0.00043835,5]
[340880118,1730001044183,-500.0,0.00043835,5]
[340880119,1730001044196,-500.0,0.00043835,5]
[340880120,1730001044206,-500.0,0.00043835,5]
[340880121,1730001044217,-500.0,0.00043835,5]
[340880122,1730001044229,-500.0,0.00043835,5]
[340880123,1730001044240,-450.45811897,0.00043835,5]
[340880124,1730001044251,-500.0,0.00043835,5]
[340880125,1730001044260,-500.0,0.00043835,5]
[340880126,1730001044270,-500.0,0.00043835,5]
[340880127,1730001044279,-500.0,0.00043835,5]
[340880128,1730001044289,-500.0,0.00043835,5]
[340880129,1730001044299,-500.0,0.00043835,5]
[340880130,1730001044308,-527.50396056,0.00043835,5]
[340880131,1730001044318,-498.1741238,0.00043835,5]
[340880132,1730001044327,-563.82,0.00043835,5]
[340880133,1730001044337,-563.82,0.00043835,5]
[340880134,1730001044347,-563.82,0.00043835,5]
[340880135,1730001044356,-563.82,0.00043835,5]
[340880136,1730001044366,-563.82,0.00043835,5]
[340880137,1730001044376,-638.63324121,0.00043835,5]
[340880138,1730001044386,-300.56806547,0.00043835,5]
[340880139,1730001044396,-183.03811707,0.00043835,5]
[340880140,1730001044405,-156.17560068,0.00043835,5]
[340880141,1730001044415,-500.0,0.00043835,5]
[340880142,1730001044424,-500.0,0.00043835,5]
[340880143,1730001044433,-500.0,0.00043835,5]
[340880144,1730001044443,-197.48861988,0.00043835,5]
[340880145,1730001044451,-541.30970644,0.00043835,5]
[340880146,1730001044460,-500.0,0.00043835,5]
[340880147,1730001044469,-385.25736412,0.00043835,5]
[340880148,1730001044479,-500.0,0.00043835,5]
[340880149,1730001044488,-500.0,0.00043835,5]
[340880150,1730001044498,-500.0,0.00043835,5]
[340880151,1730001044509,-500.0,0.00043835,5]
[340880152,1730001044518,-500.0,0.00043835,5]
[340880153,1730001044527,-500.0,0.00043835,5]
[340880154,1730001044536,-500.0,0.00043835,5]
[340880155,1730001044545,-500.0,0.00043835,5]
[340880156,1730001044555,-500.0,0.00043835,5]
[340880157,1730001044564,-566.83571435,0.00043835,5]
[340880158,1730001044573,-343.04204876,0.00043835,5]
[340880159,1730001044583,-150.0,0.00043835,5]
[340880160,1730001044593,-150.0,0.00043835,5]
[340880161,1730001044602,-150.0,0.00043835,5]
[340880162,1730001044612,-150.0,0.00043835,5]
[340880163,1730001044621,-150.0,0.00043835,5]
[340880164,1730001044631,-500.0,0.00043835,7]
[340880165,1730001044641,-500.0,0.00043835,7]
[340880166,1730001044651,-500.0,0.00043835,7]
[340880167,1730001044661,-350.38848553,0.00043835,7]
[340880168,1730001044671,-500.0,0.00043835,5]
[340880169,1730001044681,-542.17704831,0.00043835,5]
[340880170,1730001044692,-210.67632224,0.00043835,5]
[340880171,1730001044701,-500.0,0.00043835,5]
[340880172,1730001044711,-500.0,0.00043835,5]
[340880173,1730001044722,-500.0,0.00043835,5]